[Event "NOR-ch Various 2019"]
[Site "Larvik"]
[Date "2019.07.13"]
[Round "9.35"]
[White "Demac, Elias"]
[Black "Huse, Sigurd Kjelsbol"]
[Result "1-0"]
[ECO "D15"]
[WhiteElo "2215"]
[BlackElo "2122"]
[Annotator "ChessBase"]
[PlyCount "119"]
[EventDate "2019.07.06"]
[EventType "swiss"]
[EventCountry "NOR"]
[SourceTitle "playchess.com"]
[Source "ChessBase"]
[SourceQuality "1"]
[TimeControl "40/5400+30:1800+30"]

1. d4 {[%emt 0:00:00]} d5 {[%emt 0:00:00]} 2. c4 {[%emt 0:00:00]} c6 {[%emt 0:00:00]} 3. Nf3 {[%emt 0:00:00]} Nf6 {[%emt 0:00:00]} 4. Nc3 {[%emt 0:00:00]} a6 {[%emt 0:00:00]} 5. c5 {[%emt 0:00:00]} g6 {[%emt 0:00:00]} 6. h3 {[%emt 0:00:00]} Bg7 {[%emt 0:00:07]} 7. Bf4 {[%emt 0:00:00]} O-O {[%emt 0:00:04]} 8. e3 {[%emt 0:00:00]} Re8 {[%emt 0:00:04]} 9. Be2 {[%emt 0:00:12]} Nfd7 {[%emt 0:00:33]} 10. O-O {[%emt 0:04:15]} e5 {[%emt 0:00:17]} 11. Nxe5 {[%emt 0:00:08]} Nxe5 {[%emt 0:00:35]} 12. Bxe5 {[%emt 0:00:06]} Bxe5 {[%emt 0:01:08]} 13. dxe5 {[%emt 0:00:06]} Rxe5 {[%emt 0:00:18]} 14. Na4 {[%emt 0:05:37]} Nd7 {[%emt 0:00:54]} 15. Bf3 {[%emt 0:00:39]} Nf6 {[%emt 0:04:37]} 16. Qd4 {[%emt 0:04:19]} Qe7 {[%emt 0:03:36]} 17. Nc3 {[%emt 0:02:28]} h5 {[%emt 0:05:08]} 18. b4 {[%emt 0:02:49]} Bf5 {[%emt 0:03:50]} 19. a4 {[%emt 0:00:44]} Ne4 {[%emt 0:04:34]} 20. Bxe4 {[%emt 0:02:37]} Bxe4 {[%emt 0:02:24]} 21. b5 {[%emt 0:12:01]} Re8 {[%emt 0:01:31]} 22. Ra2 {[%emt 0:04:04]} h4 {[%emt 0:05:33]} 23. bxc6 {[%emt 0:04:34]} bxc6 {[%emt 0:01:09]} 24. Rb2 {[%emt 0:01:17]} Rg5 {[%emt 0:04:20]} 25. f3 {[%emt 0:10:54]} Bf5 {[%emt 0:00:12]} 26. Kf2 {[%emt 0:00:25]} Bc8 {[%emt 0:03:01]} 27. Ne2 {[%emt 0:13:21]} a5 {[%emt 0:03:42]} 28. Re1 {[%emt 0:03:37]} Re5 {[%emt 0:02:23]} 29. Nf4 {[%emt 0:18:07]} Qg5 {[%emt 0:06:35]} 30. Rb6 {[%emt 0:00:22]} Qg3+ {[%emt 0:09:30]} 31. Kf1 {[%emt 0:00:05]} Qh2 {[%emt 0:00:17]} 32. Rxc6 {[%emt 0:03:33]} Rg5 {[%emt 0:04:47]} 33. Qf6 {[%emt 0:03:18]} Qg3 {[%emt 0:01:09]} 34. Re2 {[%emt 0:01:10]} Bd7 {[%emt 0:04:15]} 35. Rc7 {[%emt 0:01:32]} Rb8 {[%emt 0:00:46]} 36. Rb2 {[%emt 0:00:46]} Rxb2 {[%emt 0:05:05]} 37. Qxb2 {[%emt 0:00:02]} Bxh3 {[%emt 0:00:29]} 38. Qb8+ {[%emt 0:00:02]} Kg7 {[%emt 0:00:25]} 39. Qb2+ {[%emt 0:00:12]} Kg8 {[%emt 0:00:17]} 40. Nxh3 {[%emt 0:00:57]} Qxc7 {[%emt 0:00:05]} 41. Nxg5 {[%emt 0:30:06]} Qxc5 {[%emt 0:30:04]} 42. Qb8+ {[%emt 0:01:12]} Kg7 {[%emt 0:00:10]} 43. Qe5+ {[%emt 0:00:30]} Kg8 {[%emt 0:02:06]} 44. Kg1 {[%emt 0:03:40]} Qa7 {[%emt 0:04:47]} 45. Qe8+ {[%emt 0:01:45]} Kg7 {[%emt 0:00:10]} 46. Kh2 {[%emt 0:00:11]} Qc7+ {[%emt 0:03:24]} 47. f4 {[%emt 0:00:16]} d4 {[%emt 0:00:30]} 48. Qe5+ {[%emt 0:00:00]} Qxe5 {[%emt 0:00:00]} 49. fxe5 {[%emt 0:00:00]} dxe3 {[%emt 0:00:00]} 50. Nf3 {[%emt 0:00:00]} e2 {[%emt 0:00:00]} 51. Kg1 {[%emt 0:00:00]} g5 {[%emt 0:00:00]} 52. Kf2 {[%emt 0:00:00]} Kg6 {[%emt 0:00:00]} 53. Nd4 {[%emt 0:00:00]} g4 {[%emt 0:00:00]} 54. Kxe2 {[%emt 0:00:00]} f6 {[%emt 0:00:00]} 55. exf6 {[%emt 0:00:00]} Kxf6 {[%emt 0:00:00]} 56. Nc6 {[%emt 0:00:00]} Kf5 {[%emt 0:00:00]} 57. Nxa5 {[%emt 0:00:00]} Ke4 {[%emt 0:00:00]} 58. Nc4 {[%emt 0:00:00]} Kf4 {[%emt 0:00:00]} 59. Kf2 {[%emt 0:00:00]} Ke4 {[%emt 0:00:00]} 60. a5 {[%emt 0:00:00]} 1-0

[Event "NOR-ch Various 2019"]
[Site "Larvik"]
[Date "2019.07.13"]
[Round "9.36"]
[White "Thanke, Bror"]
[Black "Mansoor, Afras"]
[Result "0-1"]
[ECO "C48"]
[WhiteElo "2191"]
[BlackElo "1991"]
[Annotator "ChessBase"]
[PlyCount "102"]
[EventDate "2019.07.06"]
[EventType "swiss"]
[EventCountry "NOR"]
[SourceTitle "playchess.com"]
[Source "ChessBase"]
[SourceQuality "1"]
[TimeControl "40/5400+30:1800+30"]

1. e4 {[%emt 0:00:07]} e5 {[%emt 0:04:37]} 2. Nc3 {[%emt 0:00:10]} Nf6 {[%emt 0:00:10]} 3. Nf3 {[%emt 0:00:04]} Nc6 {[%emt 0:00:10]} 4. Bb5 {[%emt 0:00:04]} Bd6 {[%emt 0:02:26]} 5. O-O {[%emt 0:00:26]} O-O {[%emt 0:00:15]} 6. a4 {[%emt 0:01:02]} a6 {[%emt 0:00:08]} 7. Bc4 {[%emt 0:00:13]} Bc5 {[%emt 0:00:55]} 8. d3 {[%emt 0:00:31]} h6 {[%emt 0:00:18]} 9. Be3 {[%emt 0:00:51]} Bxe3 {[%emt 0:04:37]} 10. fxe3 {[%emt 0:00:05]} d6 {[%emt 0:00:48]} 11. Qe2 {[%emt 0:07:35]} Be6 {[%emt 0:10:02]} 12. Nd5 {[%emt 0:14:09]} Bxd5 {[%emt 0:00:37]} 13. exd5 {[%emt 0:00:07]} Ne7 {[%emt 0:00:09]} 14. Nh4 {[%emt 0:08:58]} Nfxd5 {[%emt 0:20:52]} 15. Rf3 {[%emt 0:10:02]} c6 {[%emt 0:07:26]} 16. Raf1 {[%emt 0:01:02]} b5 {[%emt 0:02:52]} 17. axb5 {[%emt 0:00:29]} axb5 {[%emt 0:00:05]} 18. Bb3 {[%emt 0:00:09]} g5 {[%emt 0:14:32]} 19. Nf5 {[%emt 0:02:50]} Nxf5 {[%emt 0:00:06]} 20. Rxf5 {[%emt 0:00:30]} Kg7 {[%emt 0:00:59]} 21. c4 {[%emt 0:15:21]} bxc4 {[%emt 0:01:29]} 22. dxc4 {[%emt 0:01:42]} Ne7 {[%emt 0:00:56]} 23. Rf6 {[%emt 0:00:32]} Ng6 {[%emt 0:01:24]} 24. R6f2 {[%emt 0:04:27]} Qe7 {[%emt 0:04:29]} 25. Bc2 {[%emt 0:09:13]} e4 {[%emt 0:10:03]} 26. Qg4 {[%emt 0:00:59]} d5 {[%emt 0:00:32]} 27. cxd5 {[%emt 0:01:03]} cxd5 {[%emt 0:00:05]} 28. Qd1 {[%emt 0:01:32]} Qc5 {[%emt 0:01:09]} 29. Qd2 {[%emt 0:01:27]} Rab8 {[%emt 0:02:22]} 30. Bb1 {[%emt 0:00:30]} Rb3 {[%emt 0:02:13]} 31. Ba2 {[%emt 0:04:21]} Rxe3 {[%emt 0:02:40]} 32. b4 {[%emt 0:01:49]} Qb6 {[%emt 0:02:19]} 33. Bxd5 {[%emt 0:04:36]} Nf4 {[%emt 0:02:03]} 34. Kh1 {[%emt 0:00:44]} Rd3 {[%emt 0:00:22]} 35. Qb2+ {[%emt 0:00:17]} f6 {[%emt 0:01:26]} 36. Bxe4 {[%emt 0:00:52]} Rd4 {[%emt 0:00:05]} 37. Bb1 {[%emt 0:05:12]} Rxb4 {[%emt 0:00:24]} 38. Qc2 {[%emt 0:00:23]} f5 {[%emt 0:00:50]} 39. Rd2 {[%emt 0:00:35]} Rf7 {[%emt 0:01:17]} 40. Ba2 {[%emt 0:00:33]} Rf6 {[%emt 0:00:53]} 41. Qc8 {[%emt 0:33:51]} Qb8 {[%emt 0:30:22]} 42. Qc3 {[%emt 0:00:00]} Qb7 {[%emt 0:00:00]} 43. h3 {[%emt 0:00:00]} Re4 {[%emt 0:00:00]} 44. Rb1 {[%emt 0:00:00]} Qe7 {[%emt 0:00:00]} 45. Rdb2 {[%emt 0:00:00]} Qe5 {[%emt 0:00:00]} 46. Qc8 {[%emt 0:01:49]} Kg6 {[%emt 0:00:00]} 47. Qg8+ {[%emt 0:00:50]} Kh5 {[%emt 0:00:00]} 48. Bf7+ {[%emt 0:01:03]} Kh4 {[%emt 0:00:00]} 49. Rb3 {[%emt 0:00:50]} Re1+ {[%emt 0:01:26]} 50. Rxe1 {[%emt 0:00:09]} Qxe1+ {[%emt 0:00:03]} 51. Kh2 {[%emt 0:00:07]} Ne2 {[%emt 0:00:36]} 0-1

[Event "NOR-ch Various 2019"]
[Site "Larvik"]
[Date "2019.07.13"]
[Round "9.37"]
[White "Skotheim, Andreas"]
[Black "Holleland, Sigve"]
[Result "1-0"]
[ECO "A45"]
[WhiteElo "2138"]
[BlackElo "2092"]
[Annotator "ChessBase"]
[PlyCount "69"]
[EventDate "2019.07.06"]
[EventType "swiss"]
[EventCountry "NOR"]
[SourceTitle "playchess.com"]
[Source "ChessBase"]
[SourceQuality "1"]
[TimeControl "40/5400+30:1800+30"]

1. d4 {[%emt 0:00:00]} Nf6 {[%emt 0:00:00]} 2. Bg5 {[%emt 0:00:05]} c5 {[%emt 0:00:00]} 3. d5 {[%emt 0:00:19]} Qb6 {[%emt 0:00:00]} 4. Nc3 {[%emt 0:01:12]} Qxb2 {[%emt 0:00:08]} 5. Bd2 {[%emt 0:00:21]} Qb6 {[%emt 0:00:29]} 6. e4 {[%emt 0:01:16]} d6 {[%emt 0:00:27]} 7. Bb5+ {[%emt 0:12:45]} Bd7 {[%emt 0:00:08]} 8. a4 {[%emt 0:00:13]} g6 {[%emt 0:03:50]} 9. f4 {[%emt 0:07:12]} Bxb5 {[%emt 0:02:11]} 10. axb5 {[%emt 0:00:11]} Nbd7 {[%emt 0:00:17]} 11. Qe2 {[%emt 0:02:01]} e6 {[%emt 0:06:17]} 12. Nf3 {[%emt 0:20:52]} Bg7 {[%emt 0:04:45]} 13. dxe6 {[%emt 0:06:52]} fxe6 {[%emt 0:00:09]} 14. Ng5 {[%emt 0:01:03]} Nf8 {[%emt 0:01:56]} 15. e5 {[%emt 0:07:56]} dxe5 {[%emt 0:05:04]} 16. fxe5 {[%emt 0:01:01]} N6d7 {[%emt 0:01:33]} 17. Nce4 {[%emt 0:00:43]} Qc7 {[%emt 0:05:42]} 18. Nd6+ {[%emt 0:03:03]} Ke7 {[%emt 0:00:17]} 19. Bc3 {[%emt 0:09:17]} h6 {[%emt 0:02:47]} 20. Qf3 {[%emt 0:06:11]} Bxe5 {[%emt 0:08:30]} 21. Qf7+ {[%emt 0:00:30]} Kxd6 {[%emt 0:00:10]} 22. Bxe5+ {[%emt 0:00:14]} Kxe5 {[%emt 0:00:15]} 23. O-O-O {[%emt 0:00:26]} Qa5 {[%emt 0:01:06]} 24. Rhe1+ {[%emt 0:01:11]} Qxe1 {[%emt 0:00:07]} 25. Rxe1+ {[%emt 0:00:04]} Kd6 {[%emt 0:00:42]} 26. Rd1+ {[%emt 0:00:17]} Ke5 {[%emt 0:00:34]} 27. Nf3+ {[%emt 0:01:00]} Ke4 {[%emt 0:00:09]} 28. Re1+ {[%emt 0:05:50]} Kd5 {[%emt 0:00:08]} 29. Qf4 {[%emt 0:00:43]} e5 {[%emt 0:00:31]} 30. c4+ {[%emt 0:00:42]} Ke6 {[%emt 0:00:23]} 31. Rxe5+ {[%emt 0:00:36]} Nxe5 {[%emt 0:00:14]} 32. Qxe5+ {[%emt 0:00:06]} Kf7 {[%emt 0:00:13]} 33. Qxh8 {[%emt 0:00:13]} a6 {[%emt 0:00:07]} 34. Ne5+ {[%emt 0:00:45]} Ke6 {[%emt 0:00:05]} 35. Nxg6 {[%emt 0:00:20] Kd5} 1-0

[Event "NOR-ch Various 2019"]
[Site "Larvik"]
[Date "2019.07.13"]
[Round "9.38"]
[White "Moen, Ole Christian"]
[Black "Kvam, Audun"]
[Result "1/2-1/2"]
[ECO "B31"]
[WhiteElo "2234"]
[BlackElo "2017"]
[Annotator "ChessBase"]
[PlyCount "134"]
[EventDate "2019.07.06"]
[EventType "swiss"]
[EventCountry "NOR"]
[SourceTitle "playchess.com"]
[Source "ChessBase"]
[SourceQuality "1"]
[TimeControl "40/5400+30:1800+30"]

1. e4 {[%emt 0:00:00]} c5 {[%emt 0:01:05]} 2. Nf3 {[%emt 0:03:54]} Nc6 {[%emt 0:00:05]} 3. Bb5 {[%emt 0:00:04]} g6 {[%emt 0:00:36]} 4. O-O {[%emt 0:00:09]} Bg7 {[%emt 0:00:17]} 5. Re1 {[%emt 0:00:05]} e5 {[%emt 0:02:34]} 6. Bxc6 {[%emt 0:01:25]} dxc6 {[%emt 0:00:06]} 7. h3 {[%emt 0:00:04]} Qc7 {[%emt 0:09:09]} 8. d3 {[%emt 0:00:16]} Nf6 {[%emt 0:01:52]} 9. Be3 {[%emt 0:00:12]} b6 {[%emt 0:00:16]} 10. a4 {[%emt 0:00:11]} a5 {[%emt 0:00:56]} 11. Na3 {[%emt 0:01:07]} O-O {[%emt 0:02:43]} 12. Nc4 {[%emt 0:00:33]} Nd7 {[%emt 0:17:06]} 13. Qd2 {[%emt 0:08:52]} Ba6 {[%emt 0:03:41]} 14. b3 {[%emt 0:03:30]} Rfe8 {[%emt 0:08:29]} 15. Nh2 {[%emt 0:02:30]} Nf6 {[%emt 0:13:22]} 16. f4 {[%emt 0:04:18]} Rad8 {[%emt 0:02:33]} 17. Qf2 {[%emt 0:07:41]} Bxc4 {[%emt 0:02:39]} 18. bxc4 {[%emt 0:00:27]} exf4 {[%emt 0:05:14]} 19. Bxf4 {[%emt 0:00:18]} Qd7 {[%emt 0:00:23]} 20. Rab1 {[%emt 0:01:24]} Nh5 {[%emt 0:03:15]} 21. Be3 {[%emt 0:09:52]} f5 {[%emt 0:02:16]} 22. exf5 {[%emt 0:03:08]} gxf5 {[%emt 0:01:40]} 23. Qf3 {[%emt 0:06:07]} Rxe3 {[%emt 0:08:20]} 24. Rxe3 {[%emt 0:01:45]} Bd4 {[%emt 0:00:27]} 25. Qxh5 {[%emt 0:04:42]} Bxe3+ {[%emt 0:01:28]} 26. Kh1 {[%emt 0:00:08]} Rb8 {[%emt 0:00:58]} 27. Nf3 {[%emt 0:01:44]} b5 {[%emt 0:01:04]} 28. Nh4 {[%emt 0:00:31]} f4 {[%emt 0:05:09]} 29. Nf5 {[%emt 0:00:28]} Rf8 {[%emt 0:01:51]} 30. Nh6+ {[%emt 0:02:39]} Kh8 {[%emt 0:00:17]} 31. cxb5 {[%emt 0:00:32]} f3 {[%emt 0:02:44]} 32. Qe5+ {[%emt 0:00:25]} Qg7 {[%emt 0:00:08]} 33. Qxg7+ {[%emt 0:00:05]} Kxg7 {[%emt 0:00:05]} 34. Ng4 {[%emt 0:00:05]} Bd4 {[%emt 0:01:40]} 35. gxf3 {[%emt 0:08:32]} cxb5 {[%emt 0:00:17]} 36. Rxb5 {[%emt 0:00:30]} Rxf3 {[%emt 0:00:34]} 37. Kg2 {[%emt 0:01:45]} Rf7 {[%emt 0:00:06]} 38. Rxa5 {[%emt 0:08:23]} h5 {[%emt 0:00:46]} 39. c3 {[%emt 0:01:50]} hxg4 {[%emt 0:00:03]} 40. cxd4 {[%emt 0:00:05]} gxh3+ {[%emt 0:00:04]} 41. Kxh3 {[%emt 0:30:06]} cxd4 {[%emt 0:30:05]} 42. Kg4 {[%emt 0:00:08]} Rf1 {[%emt 0:00:00]} 43. Rd5 {[%emt 0:00:00]} Kf6 {[%emt 0:00:00]} 44. Rxd4 {[%emt 0:00:00]} Ke5 {[%emt 0:00:00]} 45. Rd8 {[%emt 0:00:00]} Rf4+ {[%emt 0:00:00]} 46. Kg3 {[%emt 0:00:00]} Rxa4 {[%emt 0:00:00]} 47. Kf3 {[%emt 0:00:00]} Ke6 {[%emt 0:00:00]} 48. Rh8 {[%emt 0:00:00]} Kd5 {[%emt 0:00:00]} 49. Ke3 {[%emt 0:00:00]} Kd6 {[%emt 0:00:00]} 50. d4 {[%emt 0:00:00]} Kd5 {[%emt 0:00:00]} 51. Rh5+ {[%emt 0:00:00]} Kd6 {[%emt 0:00:00]} 52. Ke4 {[%emt 0:00:00]} Kd7 {[%emt 0:00:00]} 53. Rh6 {[%emt 0:00:00]} Ra5 {[%emt 0:00:00]} 54. Rg6 {[%emt 0:00:00]} Rb5 {[%emt 0:00:00]} 55. Ra6 {[%emt 0:00:00]} Rh5 {[%emt 0:00:00]} 56. Kd3 {[%emt 0:00:00]} Rg5 {[%emt 0:00:00]} 57. Kc4 {[%emt 0:00:00]} Rh5 {[%emt 0:00:00]} 58. Ra1 {[%emt 0:00:00]} Rg5 {[%emt 0:00:00]} 59. Rh1 {[%emt 0:00:00]} Rf5 {[%emt 0:00:00]} 60. d5 {[%emt 0:00:00]} Rf6 {[%emt 0:00:00]} 61. Kc5 {[%emt 0:00:00]} Rg6 {[%emt 0:00:00]} 62. Rh7+ {[%emt 0:00:00]} Kd8 {[%emt 0:00:00]} 63. Rh5 {[%emt 0:00:00]} Kd7 {[%emt 0:00:00]} 64. Rf5 {[%emt 0:00:00]} Rh6 {[%emt 0:00:00]} 65. Rf7+ {[%emt 0:00:00]} Kd8 {[%emt 0:00:00]} 66. Rg7 {[%emt 0:00:00]} Rf6 {[%emt 0:00:00]} 67. d6 {[%emt 0:00:00]} Rf1 {[%emt 0:00:00]} 1/2-1/2

[Event "NOR-ch Various 2019"]
[Site "Larvik"]
[Date "2019.07.13"]
[Round "9.39"]
[White "Grover, Sigurd Loe"]
[Black "Fossan, Aleksander"]
[Result "1-0"]
[ECO "A53"]
[WhiteElo "2052"]
[BlackElo "2155"]
[Annotator "ChessBase"]
[PlyCount "61"]
[EventDate "2019.07.06"]
[EventType "swiss"]
[EventCountry "NOR"]
[SourceTitle "playchess.com"]
[Source "ChessBase"]
[SourceQuality "1"]
[TimeControl "40/5400+30:1800+30"]

1. d4 {[%emt 0:00:00]} d6 {[%emt 0:04:54]} 2. Nf3 {[%emt 0:00:00]} Bg4 {[%emt 0:00:44]} 3. c4 {[%emt 0:00:09]} Nd7 {[%emt 0:03:02]} 4. Nc3 {[%emt 0:02:02]} e5 {[%emt 0:00:43]} 5. g3 {[%emt 0:00:12]} Ngf6 {[%emt 0:02:20]} 6. Bg2 {[%emt 0:00:28]} c6 {[%emt 0:01:56]} 7. O-O {[%emt 0:03:12]} Be7 {[%emt 0:00:57]} 8. h3 {[%emt 0:03:54]} Bh5 {[%emt 0:00:09]} 9. Nh4 {[%emt 0:01:02]} O-O {[%emt 0:02:12]} 10. Nf5 {[%emt 0:01:20]} Re8 {[%emt 0:04:48]} 11. Nxe7+ {[%emt 0:00:18]} Qxe7 {[%emt 0:00:21]} 12. g4 {[%emt 0:03:20]} Bg6 {[%emt 0:00:42]} 13. e4 {[%emt 0:08:56]} h6 {[%emt 0:11:23]} 14. f3 {[%emt 0:05:19]} Rad8 {[%emt 0:06:10]} 15. Re1 {[%emt 0:02:06]} Nf8 {[%emt 0:02:54]} 16. Be3 {[%emt 0:07:00]} a6 {[%emt 0:10:08]} 17. d5 {[%emt 0:00:23]} cxd5 {[%emt 0:07:12]} 18. cxd5 {[%emt 0:00:11]} N6d7 {[%emt 0:08:56]} 19. Qd2 {[%emt 0:01:24]} Bh7 {[%emt 0:01:22]} 20. Rac1 {[%emt 0:01:27]} Rc8 {[%emt 0:02:02]} 21. Ne2 {[%emt 0:02:04]} h5 {[%emt 0:06:37]} 22. Ng3 {[%emt 0:01:31]} hxg4 {[%emt 0:01:14]} 23. hxg4 {[%emt 0:00:07]} g6 {[%emt 0:01:18]} 24. g5 {[%emt 0:02:44]} f5 {[%emt 0:00:52]} 25. gxf6 {[%emt 0:00:07]} Nxf6 {[%emt 0:01:38]} 26. Bh3 {[%emt 0:00:45]} Rxc1 {[%emt 0:01:37]} 27. Rxc1 {[%emt 0:00:46]} Nh5 {[%emt 0:01:32]} 28. Nxh5 {[%emt 0:04:02]} gxh5 {[%emt 0:00:01]} 29. Qg2+ {[%emt 0:00:23]} Kh8 {[%emt 0:00:40]} 30. Bg5 {[%emt 0:00:13]} Qg7 {[%emt 0:02:21]} 31. Rc6 {[%emt 0:00:54]} 1-0

[Event "NOR-ch Various 2019"]
[Site "Larvik"]
[Date "2019.07.13"]
[Round "9.40"]
[White "Machlik, Edit"]
[Black "Carlsen, Christian Heen"]
[Result "0-1"]
[ECO "A67"]
[WhiteElo "2075"]
[BlackElo "2013"]
[Annotator "NA"]
[PlyCount "79"]
[EventDate "2019.07.06"]
[EventType "swiss"]
[EventCountry "NOR"]
[SourceTitle "playchess.com"]
[Source "ChessBase"]
[SourceQuality "1"]
[TimeControl "40/5400+30:1800+30"]

1. d4 {[%emt 0:00:00]} Nf6 {[%emt 0:26:01]} 2. c4 {[%emt 0:01:30]} e6 {[%emt 0:01:39]} 3. Nc3 {[%emt 0:00:13]} c5 {[%emt 0:00:29]} 4. d5 {[%emt 0:01:29]} exd5 {[%emt 0:00:04]} 5. cxd5 {[%emt 0:00:27]} d6 {[%emt 0:00:05]} 6. e4 {[%emt 0:00:15]} g6 {[%emt 0:00:15]} 7. f4 {[%emt 0:00:36]} Bg7 {[%emt 0:00:05]} 8. Bb5+ {[%emt 0:00:05]} Nfd7 {[%emt 0:00:07]} 9. a4 {[%emt 0:00:26]} Qh4+ {[%emt 0:00:04]} 10. g3 {[%emt 0:03:23]} Qe7 {[%emt 0:00:04]} 11. Qe2 {[%emt 0:20:43]} O-O {[%emt 0:00:22]} 12. Nf3 {[%emt 0:03:42]} Na6 {[%emt 0:00:36]} 13. O-O {[%emt 0:00:46]} Nb4 {[%emt 0:01:31]} 14. Qd1 {[%emt 0:36:52]} a6 {[%emt 0:05:59]} 15. Be2 {[%emt 0:02:57]} Rd8 {[%emt 0:20:57]} 16. Re1 {[%emt 0:02:55]} a5 {[%emt 0:09:53]} 17. Kg2 {[%emt 0:02:20]} b6 {[%emt 0:06:32]} 18. Bc4 {[%emt 0:02:24]} Ba6 {[%emt 0:02:33]} 19. Nb5 {[%emt 0:02:29]} Bxb5 {[%emt 0:02:10]} 20. Bxb5 {[%emt 0:01:38]} c4 {[%emt 0:01:42]} 21. Bxc4 {[%emt 0:04:53]} Rac8 {[%emt 0:00:06]} 22. Qe2 {[%emt 0:04:53]} Rc7 {[%emt 0:04:18]} 23. Rb1 {[%emt 0:01:12]} Nc5 {[%emt 0:01:37]} 24. b3 {[%emt 0:00:48]} Rdc8 {[%emt 0:00:40]} 25. e5 {[%emt 0:03:10]} Nxa4 {[%emt 0:00:17]} 26. Bd2 {[%emt 0:01:12]} b5 {[%emt 0:02:38]} 27. Rbc1 {[%emt 0:01:42]} bxc4 {[%emt 0:02:07]} 28. bxa4 {[%emt 0:00:00]} c3 {[%emt 0:00:34]} 29. Be3 {[%emt 0:00:29]} Nxd5 {[%emt 0:00:17]} 30. Bd4 {[%emt 0:00:24]} Rc4 {[%emt 0:00:39]} 31. Qd3 {[%emt 0:00:41]} Nb4 {[%emt 0:02:45]} 32. Qe2 {[%emt 0:00:43]} dxe5 {[%emt 0:00:23]} 33. Bxe5 {[%emt 0:00:19]} c2 {[%emt 0:01:15]} 34. Bxg7 {[%emt 0:00:43]} Qxe2+ {[%emt 0:00:09]} 35. Rxe2 {[%emt 0:00:01]} Kxg7 {[%emt 0:00:46]} 36. Ne1 {[%emt 0:00:07]} Rd4 {[%emt 0:01:01]} 37. Nf3 {[%emt 0:01:25]} Rd1 {[%emt 0:00:26]} 38. Re1 {[%emt 0:00:28]} Rxc1 {[%emt 0:00:06]} 39. Rxc1 {[%emt 0:00:03]} Nd3 {[%emt 0:00:09]} 40. Nd4 {[%emt 0:01:04]} 0-1